bitfinex/quotes_SOLUSD_20251002
["timestamp","ask_amount","ask_price","bid_price","bid_amount"]
[1759411438751,0.2,226.26,226.21,0.71]
[1759411438949,0.2,226.26,226.22,0.71]
[1759411439130,0.2,226.26,226.23,0.71]
[1759411439658,0.2,226.26,226.21,0.71]
[1759411440329,0.2,226.26,226.22,16.18166474]
[1759411442084,0.2,226.26,226.23,0.71]
[1759411442348,0.2,226.26,226.24,4.42008486]
[1759411442547,0.92,226.26,226.24,4.42008486]
[1759411442953,3.40866076,226.25,226.2,0.71]
[1759411443258,0.2,226.26,226.21,0.71]
[1759411443459,2.68866076,226.25,226.2,4.42086648]
[1759411443659,2.68866076,226.25,226.21,0.71]
[1759411443832,3.40866076,226.25,226.2,4.42086648]
[1759411444347,2.68866076,226.23,226.19,4.42106193]
[1759411444553,2.68866076,226.22,226.19,4.42106193]
[1759411444869,2.68866076,226.22,226.19,83.62106193]
[1759411445222,3.40866076,226.23,226.19,83.62106193]
[1759411445641,3.40866076,226.23,226.19,79.2]
[1759411447236,3.40866076,226.23,226.19,83.62106193]
[1759411447752,3.40866076,226.23,226.19,79.92106193]
[1759411449330,0.92,226.26,226.19,79.92106193]
[1759411449528,0.2,226.26,226.2,0.71]
[1759411450459,0.2,226.26,226.2,76.21]
[1759411450657,0.2,226.26,226.21,43.66647521]
[1759411450828,0.2,226.26,226.22,15.47166474]
[1759411451029,0.2,226.26,226.22,16.18166474]
[1759411451232,0.2,226.26,226.23,0.71]
[1759411451443,0.2,226.26,226.23,76.21]
[1759411451643,0.2,226.26,226.24,0.71]
[1759411451934,0.2,226.26,226.25,0.71]
[1759411453041,0.2,226.26,226.25,5.1298895]
[1759411453258,0.2,226.26,226.25,16.00636471]
[1759411453476,0.2,226.26,226.25,91.50636471]
[1759411453688,0.2,226.26,226.25,123.58636471]
[1759411453861,0.2,226.26,226.25,126.99502547]
[1759411454057,0.2,226.26,226.25,84.03855026]
[1759411454276,0.2,226.26,226.25,80.6298895]
[1759411455472,0.2,226.26,226.25,79.9198895]
[1759411455649,0.92,226.26,226.25,79.9198895]
[1759411455960,0.2,226.26,226.25,79.9198895]
[1759411456646,2.63877522,226.26,226.22,4.42041506]
[1759411456845,2.43877522,226.25,226.22,4.42041506]
[1759411457048,1.91877522,226.26,226.22,4.42041506]
[1759411457356,0.72,226.25,226.22,4.42041506]
[1759411457672,0.72,226.25,226.17,22.10674815]
[1759411457673,1.71877522,226.23,226.16,22.64025249]
[1759411457876,1.71877522,226.21,226.17,4.42145288]
[1759411458240,2.43877522,226.21,226.17,4.42145288]
[1759411459374,1.71877522,226.21,226.17,4.42145288]
[1759411459577,1.71877522,226.21,226.17,5.13145288]
[1759411459752,1.71877522,226.21,226.17,4.42145288]
[1759411460262,2.43877522,226.2,226.16,4.42147264]
[1759411461056,1.71877522,226.2,226.16,5.13147264]
[1759411461264,1.71877522,226.21,226.16,5.13147264]
[1759411461468,1.71877522,226.21,226.17,0.71]
[1759411461668,1.71877522,226.22,226.17,0.71]
[1759411461891,1.71877522,226.21,226.17,0.71]
[1759411462779,2.43877522,226.21,226.16,4.42147264]
[1759411463468,2.43877522,226.21,226.16,5.14147264]
[1759411463866,2.40877522,226.2,226.16,4.42147264]
[1759411465196,2.40877522,226.2,226.15,15.29831911]
[1759411465706,2.40877522,226.2,226.15,91.45831911]
[1759411466499,0.72,226.22,226.17,4.42145288]
[1759411466684,2.43877522,226.22,226.17,4.42145288]
[1759411466999,2.43877522,226.22,226.17,5.08145288]
[1759411467291,20.02,226.24,226.17,4.42145288]
[1759411467596,1.71877522,226.2,226.17,4.42145288]
[1759411467781,1.71877522,226.2,226.17,5.08145288]
[1759411467975,1.71877522,226.19,226.16,4.42163751]
[1759411468462,32.26,226.26,226.17,0.66]
[1759411468463,0.2,226.26,226.17,0.66]
[1759411468663,1.71877522,226.25,226.17,0.66]
[1759411469261,1.71877522,226.24,226.17,0.66]
[1759411470678,1.71877522,226.22,226.18,4.4212574]
[1759411470874,1.71877522,226.21,226.18,4.4212574]
[1759411471061,1.71877522,226.21,226.18,5.0812574]
[1759411471257,1.71877522,226.22,226.18,5.0812574]
[1759411471893,0.92,226.26,226.19,0.66]
[1759411472123,1.71877522,226.24,226.19,0.66]
[1759411472396,1.71877522,226.24,226.2,0.66]
[1759411472765,0.72,226.24,226.18,0.66]
[1759411472966,1.71877522,226.23,226.18,0.66]
[1759411473181,0.92,226.26,226.19,0.66]
[1759411473495,1.71877522,226.23,226.19,0.66]
[1759411473665,0.92,226.26,226.2,0.66]
[1759411473865,0.92,226.26,226.21,4.42067105]
[1759411473866,1.71877522,226.24,226.21,4.42067105]
[1759411474195,0.2,226.26,226.22,0.66]
[1759411474491,1.91877522,226.26,226.22,0.66]
[1759411474788,1.91877522,226.26,226.21,4.42067105]
[1759411474789,1.71877522,226.24,226.21,4.42067105]
[1759411475000,1.71877522,226.24,226.21,5.08067105]
[1759411476494,1.71877522,226.23,226.19,4.42087925]
[1759411476702,0.92,226.26,226.2,0.66]
[1759411476900,1.71877522,226.23,226.2,0.66]
[1759411477508,2.43877522,226.23,226.18,11.05280305]
[1759411477803,0.72,226.25,226.19,0.66]
[1759411477970,1.71877522,226.22,226.18,11.05280305]
[1759411478169,1.71877522,226.22,226.18,11.71280305]
[1759411478370,4.61977493,226.26,226.17,4.42145288]
[1759411478371,1.71877522,226.2,226.17,4.42145288]
[1759411478573,1.71877522,226.2,226.18,0.66]
[1759411478807,0.72,226.24,226.18,0.66]
[1759411478977,1.71877522,226.22,226.18,0.66]
[1759411479189,1.71877522,226.22,226.19,0.66]
[1759411479383,1.71877522,226.22,226.17,15.4750851]
[1759411479692,1.71877522,226.22,226.18,0.66]
[1759411480272,0.72,226.24,226.18,0.66]
[1759411480569,1.71877522,226.22,226.16,4.42164839]
[1759411480783,1.71877522,226.22,226.17,0.66]
[1759411481701,1.71877522,226.22,226.18,0.66]
[1759411481905,1.71877522,226.22,226.19,0.66]
[1759411482202,1.71877522,226.22,226.17,0.66]
[1759411482507,1.71877522,226.21,226.18,0.66]
[1759411483085,1.71877522,226.19,226.14,13.27933072]
[1759411483285,1.71877522,226.15,226.12,0.66]
[1759411483491,1.71877522,226.15,226.1,15.47987616]
[1759411483705,1.71877522,226.17,226.1,16.13987616]
[1759411483901,1.71877522,226.17,226.11,0.66]
[1759411484791,1.71877522,226.17,226.12,4.42243056]
[1759411485115,2.43877522,226.17,226.12,5.08243056]
[1759411486299,4.42107075,226.19,226.09,32.02]
[1759411486300,1.71877522,226.14,226.09,4.42301738]
[1759411486506,1.71877522,226.1,226.08,4.4231916]
[1759411486717,0.72,226.13,226.08,4.4231916]
[1759411486902,1.71877522,226.11,226.08,4.4231916]
[1759411487103,1.71877522,226.12,226.08,4.4231916]
[1759411487314,2.43877522,226.12,226.08,4.4231916]
[1759411487627,1.71877522,226.09,226.03,22.77896196]
[1759411487922,1.71877522,226.08,226.03,11.72033177]
[1759411488222,1.71877522,226.08,226.04,0.66]
[1759411488385,1.71877522,226.1,226.05,0.66]
[1759411488585,0.72,226.13,226.06,0.66]
[1759411488894,1.71877522,226.11,226.06,0.66]
[1759411489116,2.43877522,226.11,226.06,0.66]
[1759411490018,1.71877522,226.1,226.07,4.42340867]
[1759411490215,1.71877522,226.09,226.06,0.66]
[1759411490795,1.71877522,226.1,226.07,0.66]
[1759411491203,1.71877522,226.1,226.05,16.14310848]
[1759411491421,1.71877522,226.1,226.06,0.66]
[1759411491840,1.71877522,226.09,226.06,0.66]
[1759411492014,1.71877522,226.07,226.02,16.14300024]
[1759411492200,1.71877522,226.07,225.99,0.66]
[1759411492201,1.71877522,226.03,225.99,0.66]
[1759411492403,1.71877522,226.03,225.97,21.93954704]
[1759411492708,1.71877522,226.03,225.96,53.02]
[1759411492709,1.71877522,226.03,225.99,13.28874222]
[1759411493032,1.71877522,226.03,225.99,0.66]
[1759411493415,4.42341597,226.07,225.99,0.66]
[1759411493623,2.43877522,226.03,225.98,4.42341597]
[1759411493803,1.71877522,226.02,225.98,5.08341597]
[1759411494004,1.71877522,226.02,225.99,4.42497455]
[1759411494817,1.71877522,226.01,225.99,4.42497455]
[1759411495028,1.71877522,226.0,225.97,4.42536619]
[1759411495213,1.71877522,225.99,225.97,4.42536619]
[1759411495413,2.42877522,225.99,225.97,4.42536619]
[1759411495629,2.42877522,225.98,225.96,0.2]
[1759411495830,2.42877522,225.97,225.96,0.2]
[1759411496824,0.71,225.97,225.96,0.2]
[1759411497029,2.42877522,225.97,225.96,0.2]
[1759411497732,6.85414141,225.97,225.96,0.2]
[1759411498625,0.71,225.97,225.96,0.2]
[1759411498803,2.42877522,225.97,225.96,0.2]
[1759411499306,0.71,225.97,225.96,0.2]
[1759411499509,2.42877522,225.97,225.96,0.2]
[1759411500541,1.71877522,225.97,225.96,0.2]
[1759411500837,2.42877522,225.97,225.96,0.2]
[1759411501225,9.3038761,225.97,225.96,0.2]
[1759411501404,9.3038761,225.97,225.93,0.2]
[1759411501405,20.8,225.94,225.93,0.2]
[1759411501605,65.39525043,225.94,225.92,0.2]
[1759411501838,2.42877522,225.93,225.92,0.2]
[1759411502345,15.49220962,225.92,225.85,0.2]
[1759411502539,0.71,225.91,225.85,0.2]
[1759411502834,1.71877522,225.86,225.85,0.2]
[1759411503931,2.42877522,225.86,225.85,0.2]
[1759411504714,1.71877522,225.86,225.85,0.2]
[1759411505115,33.71877522,225.86,225.85,0.2]
[1759411505321,34.42877522,225.86,225.85,0.2]
[1759411506543,32.71,225.86,225.85,0.2]
[1759411506839,34.42877522,225.86,225.85,0.2]
[1759411507216,38.85629669,225.86,225.85,0.2]
[1759411507617,31.67647521,225.77,225.69,0.68]
[1759411507844,65.39525043,225.77,225.69,0.68]
[1759411508034,52.8,225.77,225.65,11.27888073]
[1759411508246,33.71877522,225.77,225.73,0.68]
[1759411508928,34.42877522,225.77,225.7,5.11064591]
[1759411509137,1.71877522,225.77,225.72,0.68]
[1759411509445,33.71877522,225.77,225.72,0.68]
[1759411509635,33.71877522,225.77,225.65,34.30878601]
[1759411509842,0.71,225.82,225.65,45.18526122]
[1759411510036,32.02,225.81,225.76,0.88]
[1759411510335,1.71877522,225.78,225.76,0.88]
[1759411510546,1.71877522,225.78,225.77,0.68]
[1759411510722,32.02,225.77,225.76,0.2]
[1759411510927,33.73877522,225.77,225.76,0.2]
[1759411513149,1.71877522,225.79,225.76,0.88]
[1759411513334,32.02,225.77,225.76,4.62948263]
[1759411513648,32.02,225.78,225.76,4.62948263]
[1759411514019,33.73877522,225.79,225.77,0.68]
[1759411514823,32.02,225.79,225.77,0.68]
[1759411515024,1.71877522,225.78,225.77,0.68]
[1759411515249,1.71877522,225.78,225.76,4.62948263]
[1759411515434,1.71877522,225.78,225.76,5.30948263]
[1759411515827,33.73877522,225.78,225.77,0.68]
[1759411516839,32.02,225.78,225.77,0.68]
[1759411517033,4.42807082,225.84,225.77,5.10928644]
[1759411517034,1.71877522,225.84,225.77,5.10928644]
[1759411517256,32.02,225.83,225.78,0.68]
[1759411517752,1.71877522,225.81,225.79,0.68]
[1759411518346,2.69694239,225.81,225.79,0.68]
[1759411518655,32.02,225.83,225.77,4.42928644]
[1759411518849,34.71694239,225.83,225.8,0.68]
[1759411519153,34.71694239,225.83,225.81,0.68]
[1759411519372,2.31200393,225.88,225.82,0.68]
[1759411519671,32.02,225.87,225.82,0.68]
[1759411519953,32.02,225.88,225.82,0.68]
[1759411521074,32.02,225.88,225.83,15.49838372]
[1759411521281,32.02,225.88,225.84,0.68]
[1759411521451,2.69694239,225.93,225.84,0.68]
[1759411521644,32.02,225.92,225.84,0.68]
[1759411522066,32.02,225.92,225.86,20.8]
[1759411522272,34.71694239,225.92,225.87,0.68]
[1759411522469,34.71694239,225.92,225.88,0.68]
[1759411522644,2.69694239,225.92,225.88,0.68]
[1759411523147,2.69694239,225.92,225.89,4.42693346]
[1759411523345,2.69694239,225.94,225.9,0.68]
[1759411523572,7.45638227,225.98,225.91,0.68]
[1759411523573,2.31103169,225.98,225.91,0.68]
[1759411523784,32.0,225.97,225.91,0.68]
[1759411524556,5.00753341,226.02,225.92,20.8]
[1759411524876,32.0,226.01,225.93,0.69]
[1759411525378,32.0,226.01,225.94,15.49083827]
[1759411525554,32.0,226.01,225.95,0.69]
[1759411526172,2.69694239,226.05,225.95,0.69]
[1759411526380,42.98974785,226.06,225.97,20.8]
[1759411526560,42.98974785,226.06,225.98,0.69]
[1759411527062,2.69694239,226.05,225.98,0.69]
[1759411527443,2.69694239,226.05,225.99,4.42497455]
[1759411527844,32.0,226.06,225.99,4.42497455]
[1759411528052,34.69694239,226.06,226.0,0.69]
[1759411529164,2.69694239,226.05,226.0,0.69]
[1759411529371,2.69694239,226.05,225.99,11.06243639]
[1759411529561,2.69694239,226.05,225.99,11.75243639]
[1759411529763,32.0,226.06,225.99,11.75243639]
[1759411529955,34.69694239,226.06,225.99,11.75243639]
[1759411530485,2.69694239,226.05,225.99,0.69]
[1759411531459,2.69694239,226.05,226.0,4.42477876]
[1759411531892,3.40694239,226.04,225.99,4.42496688]
[1759411532075,32.0,226.06,225.96,4.42556204]
[1759411532076,2.69694239,226.0,225.96,4.42556204]
[1759411532253,2.69694239,225.98,225.94,25.22576367]
[1759411532456,0.71,225.98,225.91,0.69]
[1759411532659,2.69694239,225.96,225.91,0.69]
[1759411532982,2.69694239,225.96,225.92,0.69]
[1759411533276,2.69694239,225.94,225.9,0.69]
[1759411533484,2.69694239,225.94,225.92,4.4263456]
[1759411533652,2.69694239,225.95,225.92,4.4263456]
[1759411533856,31.98,225.97,225.88,34.78463118]
[1759411534073,2.69694239,225.95,225.89,16.18409798]
[1759411534975,2.69694239,225.94,225.89,16.18409798]
[1759411535177,2.69694239,225.95,225.9,0.69]
[1759411535362,2.69694239,225.94,225.9,0.69]
[1759411535563,2.69694239,225.92,225.88,4.42712944]
[1759411535860,0.71,225.93,225.88,5.11712944]
[1759411535861,2.69694239,225.93,225.88,5.11712944]
[1759411536065,0.71,225.96,225.89,0.69]
[1759411536066,2.69694239,225.94,225.89,0.69]
[1759411536377,31.98,225.97,225.9,0.69]
[1759411536676,2.69694239,225.91,225.86,0.69]
[1759411536877,2.69694239,225.91,225.86,4.42752147]
[1759411537175,2.69694239,225.92,225.87,0.69]
[1759411537575,2.69694239,225.91,225.85,11.75923735]
[1759411537781,2.69694239,225.91,225.86,20.8]
[1759411538080,2.69694239,225.91,225.86,21.49]
[1759411538692,2.69694239,225.91,225.87,4.42732545]
[1759411539184,2.69694239,225.96,225.88,0.69]
[1759411539483,2.69694239,225.97,225.88,0.69]
[1759411540564,2.69694239,225.97,225.89,15.49426711]
[1759411540878,2.69694239,225.97,225.9,0.69]
[1759411541063,32.69,225.98,225.9,0.69]
[1759411541064,2.69694239,225.96,225.9,0.69]
[1759411542177,2.69694239,225.96,225.91,4.42654154]
[1759411542384,2.69694239,225.95,225.91,4.42654154]
[1759411543784,2.69694239,225.94,225.91,4.42654154]
[1759411543976,2.69694239,225.92,225.86,22.82584956]
[1759411544274,2.69694239,225.91,225.86,15.49603738]
[1759411544467,2.69694239,225.92,225.87,0.69]
[1759411544694,2.69694239,225.96,225.87,0.69]
[1759411545193,2.69694239,225.95,225.87,0.69]
[1759411545369,2.69694239,225.94,225.87,0.69]
[1759411545884,2.69694239,225.95,225.87,0.69]
[1759411546184,2.69694239,225.96,225.87,0.69]
[1759411546575,2.69694239,225.96,225.88,15.49495306]
[1759411546785,31.96,225.97,225.89,0.69]
[1759411546987,3.40694239,225.98,225.89,0.69]
[1759411547376,3.40694239,226.01,225.91,20.8]
[1759411547688,2.69694239,226.03,225.92,11.56647521]
[1759411547877,0.71,226.02,225.93,0.69]
[1759411548274,2.69694239,226.03,225.93,0.69]
[1759411548790,2.69694239,226.03,225.94,15.49083827]
[1759411548991,2.69694239,226.03,225.95,0.69]
[1759411549585,3.40694239,226.03,225.95,0.69]
[1759411550179,0.71,226.03,225.95,0.69]
[1759411550469,6.57579668,226.02,225.95,0.69]
[1759411550984,6.57579668,226.02,225.96,4.42556204]
[1759411551192,6.57579668,225.98,225.93,4.42614969]
[1759411551377,6.57579668,225.97,225.93,4.42614969]
[1759411552091,6.57579668,225.95,225.9,4.42673749]
[1759411552276,7.28579668,225.95,225.9,4.42673749]
[1759411553304,7.28579668,225.95,225.89,15.49426711]
[1759411556590,6.57579668,225.95,225.89,15.49426711]
[1759411557298,6.57579668,225.96,225.9,0.68]
[1759411558468,5.08508801,225.99,225.91,4.42654154]
[1759411558674,6.57579668,225.97,225.91,15.49289539]
[1759411560895,0.66,225.98,225.91,15.49289539]
[1759411561098,6.57579668,225.97,225.91,15.49289539]
[1759411561673,6.57579668,225.97,225.91,0.68]
[1759411562894,6.57579668,225.95,225.88,15.49495306]
[1759411563094,6.57579668,225.92,225.88,4.42712944]
[1759411563994,6.57579668,225.91,225.88,4.42712944]
[1759411564498,6.57579668,225.92,225.88,4.42712944]
[1759411565499,7.23579668,225.93,225.88,4.42712944]
[1759411565708,7.23579668,225.93,225.87,15.49533322]
[1759411565872,7.23579668,225.93,225.87,4.42732545]
[1759411566085,6.57579668,225.92,225.87,4.42732545]
[1759411566289,6.57579668,225.93,225.88,0.68]
[1759411566517,0.66,225.95,225.88,0.68]
[1759411566918,7.23579668,225.96,225.88,0.68]
[1759411567691,7.23579668,225.96,225.89,15.49426711]
[1759411567913,4.42515573,225.99,225.9,0.68]
[1759411568099,6.57579668,225.97,225.9,0.68]
[1759411568414,6.57579668,225.95,225.89,15.49426711]
[1759411568715,0.66,225.96,225.89,15.49426711]
[1759411568716,7.23579668,225.96,225.9,0.68]
[1759411568912,6.57579668,225.97,225.9,0.68]
[1759411569114,0.66,225.98,225.9,0.68]
[1759411569305,7.23579668,225.98,225.9,0.68]
[1759411569502,0.66,225.98,225.9,0.68]
[1759411569903,0.66,225.98,225.86,34.09522036]
[1759411569904,6.57579668,225.95,225.86,13.29522036]
[1759411570107,6.57579668,225.95,225.8,9.39197121]
[1759411570108,0.66,225.94,225.8,9.39197121]
[1759411570304,0.66,225.96,225.87,0.68]
[1759411570998,53.4,225.98,225.87,0.68]
[1759411571194,6.57579668,225.97,225.87,0.68]
[1759411571418,6.57579668,225.95,225.87,0.68]
[1759411572016,6.57579668,225.96,225.88,15.49495306]
[1759411572226,2.69334133,225.96,225.88,15.49495306]
[1759411572519,2.69334133,225.93,225.86,0.68]
[1759411572815,2.69334133,225.93,225.82,11.07041802]
[1759411572816,2.69334133,225.87,225.82,11.07041802]
[1759411572991,2.69334133,225.87,225.83,0.68]
[1759411573192,2.69334133,225.89,225.84,0.68]
[1759411573393,2.69334133,225.89,225.85,0.68]
[1759411573600,2.69334133,225.91,225.86,0.68]
[1759411573926,2.69334133,225.91,225.83,15.49838372]
[1759411573927,2.69334133,225.91,225.87,0.68]
[1759411574219,2.69334133,225.91,225.88,4.42712944]
[1759411574424,2.69334133,225.91,225.87,0.68]
[1759411574619,2.69334133,225.91,225.87,5.10722035]
[1759411574921,26.57757762,226.04,225.88,0.68]
[1759411574922,2.69334133,225.95,225.88,0.68]
[1759411576020,2.69334133,225.95,225.89,4.42693346]
[1759411576215,2.69334133,225.95,225.89,5.10693346]
[1759411576520,2.69334133,225.95,225.89,16.17426711]
[1759411576824,2.69334133,225.95,225.89,5.10693346]
[1759411577124,2.69334133,225.91,225.86,11.74851607]
[1759411577832,2.69334133,225.91,225.87,4.42732545]
[1759411577999,3.35334133,225.91,225.85,4.42771751]
[1759411578198,2.69334133,225.89,225.85,4.42771751]
[1759411578419,1.72482907,225.89,225.85,4.42771751]
[1759411578619,1.72482907,225.87,225.81,4.42850183]
[1759411578817,1.72482907,225.85,225.81,4.42850183]
[1759411579219,1.72482907,225.85,225.81,5.10850183]
[1759411580041,6.15300739,225.83,225.77,4.42927205]
[1759411580203,1.72482907,225.81,225.77,5.10927205]
[1759411581423,2.38482907,225.81,225.76,0.2]
[1759411581622,1.72482907,225.81,225.76,0.88]
[1759411582809,1.72482907,225.79,225.76,0.2]
[1759411583117,4.42850346,225.81,225.76,0.2]
[1759411583118,1.72482907,225.77,225.76,0.2]
[1759411583518,2.41482907,225.77,225.76,0.2]
[1759411583944,34.33482907,225.77,225.76,0.2]
[1759411584829,38.76411551,225.77,225.76,0.2]
[1759411585612,49.64059072,225.77,225.76,0.2]
[1759411585812,52.66506809,225.77,225.65,0.2]
[1759411586033,1.72482907,225.66,225.65,0.2]
[1759411586442,2.43482907,225.66,225.65,0.2]
[1759411586626,33.64482907,225.66,225.65,0.2]
[1759411587536,31.92,225.66,225.65,0.2]
[1759411588422,36.42146668,225.66,225.65,0.2]
[1759411588932,31.92,225.69,225.65,5.30160469]
[1759411589135,31.92,225.7,225.66,0.67]
[1759411589638,36.42146668,225.7,225.67,0.67]
[1759411589823,36.42146668,225.7,225.68,0.67]
[1759411589824,31.92,225.7,225.68,0.67]
[1759411590029,31.94,225.7,225.69,0.67]
[1759411590727,2.3133351,225.73,225.69,0.67]
[1759411590934,36.44146668,225.73,225.7,0.67]
[1759411591835,10.87647521,225.69,225.65,0.2]
[1759411592055,36.17794189,225.66,225.65,0.2]
[1759411592226,10.87647521,225.65,225.56,4.43341001]
[1759411592416,4.50146668,225.61,225.56,0.67]
[1759411593118,4.50146668,225.61,225.56,5.10335809]
[1759411593318,4.50146668,225.61,225.57,4.43315509]
[1759411593547,4.50146668,225.61,225.55,4.4334353]
[1759411593719,8.93389432,225.61,225.55,4.4334353]
[1759411594149,4.50146668,225.61,225.54,0.87]
[1759411594459,36.44146668,225.61,225.56,0.67]
[1759411594625,4.50146668,225.61,225.58,4.43297962]
[1759411594931,36.44146668,225.61,225.56,5.10321848]
[1759411595117,36.44146668,225.61,225.56,0.67]
[1759411595741,41.42389432,225.61,225.54,0.2]
[1759411596328,41.42389432,225.61,225.54,4.63379304]
[1759411597355,4.43203474,225.63,225.55,0.67]
[1759411597526,4.43203474,225.63,225.54,0.2]
[1759411597527,36.44146668,225.61,225.56,0.67]
[1759411597727,36.44146668,225.61,225.54,0.2]
[1759411598031,36.44146668,225.61,225.54,4.63379852]
[1759411598446,4.50146668,225.61,225.57,0.67]
[1759411598634,36.44146668,225.61,225.58,4.43300132]
[1759411598936,36.44146668,225.61,225.57,0.67]
[1759411599325,36.44146668,225.61,225.57,5.10317323]
[1759411599525,36.44146668,225.61,225.57,0.67]
[1759411599826,41.42389432,225.61,225.54,0.87]
[1759411600043,40.87389432,225.61,225.54,0.87]
[1759411600246,40.87389432,225.61,225.55,4.43360651]
[1759411600426,40.87389432,225.61,225.54,0.87]
[1759411600427,41.42389432,225.61,225.54,0.87]
[1759411600633,52.30036953,225.61,225.54,0.2]
[1759411600837,41.42389432,225.61,225.54,4.63378535]
[1759411601152,40.87389432,225.61,225.54,5.30378535]
[1759411601537,36.17794189,225.55,225.54,0.2]
[1759411601742,68.11794189,225.55,225.54,0.2]
[1759411601954,68.56794189,225.55,225.54,0.2]
[1759411603335,31.67647521,225.55,225.54,0.2]
[1759411603549,72.57154862,225.55,225.54,0.2]
[1759411605473,4.43332505,225.57,225.54,0.2]
[1759411605771,4.50146668,225.55,225.54,0.2]
[1759411605966,36.46146668,225.55,225.54,0.2]
[1759411606669,4.50146668,225.55,225.54,0.87]
[1759411606976,36.46146668,225.55,225.54,0.87]
[1759411608491,36.46146668,225.55,225.54,5.30380331]
[1759411608949,31.96,225.55,225.54,5.30380331]
[1759411611279,31.96,225.55,225.54,0.87]
[1759411612349,31.96,225.55,225.54,5.30380331]
[1759411613460,20.8,225.63,225.54,16.3883116]
[1759411613665,4.50146668,225.6,225.55,0.67]
[1759411613870,31.96,225.59,225.55,0.67]
[1759411614064,4.50146668,225.58,225.56,0.67]
[1759411614252,31.96,225.57,225.55,0.67]
[1759411614455,4.50146668,225.56,225.54,0.2]
[1759411614651,4.50146668,225.56,225.55,0.67]
[1759411615573,4.50146668,225.56,225.55,5.10360673]
[1759411615873,31.96,225.57,225.55,5.10360673]
[1759411616272,31.96,225.57,225.55,4.43360673]
[1759411616452,31.96,225.57,225.56,0.67]
[1759411617971,31.96,225.57,225.56,5.10341017]
[1759411618272,4.50146668,225.62,225.56,5.10341017]
[1759411618476,31.96,225.61,225.57,0.67]
[1759411618677,31.96,225.61,225.58,0.67]
[1759411618884,31.96,225.61,225.56,4.43341017]
[1759411619061,31.96,225.61,225.58,0.67]
[1759411619375,36.46146668,225.61,225.59,0.67]
[1759411619573,31.96,225.61,225.59,0.67]
[1759411619880,36.46146668,225.61,225.59,0.67]
[1759411620463,36.46146668,225.61,225.6,0.67]
[1759411620864,36.46146668,225.61,225.58,4.43300387]
[1759411621174,4.50146668,225.59,225.55,0.67]
[1759411621378,4.50146668,225.59,225.56,0.67]
[1759411621379,31.96,225.58,225.56,0.67]
[1759411621582,31.96,225.58,225.57,0.67]
[1759411621776,31.96,225.58,225.55,5.10360673]
[1759411621982,31.96,225.58,225.56,0.67]
[1759411622165,31.96,225.58,225.57,0.67]
[1759411622777,31.96,225.58,225.54,0.2]
[1759411622982,4.50146668,225.55,225.54,0.2]
[1759411623150,36.46146668,225.55,225.54,0.2]
[1759411623484,31.96,225.55,225.54,5.30380056]
[1759411623873,4.50146668,225.56,225.54,0.2]
[1759411624082,31.96,225.55,225.54,0.2]
[1759411624378,32.41,225.55,225.54,0.2]
[1759411624562,31.96,225.55,225.54,0.2]
[1759411624875,4.50146668,225.55,225.54,0.2]
[1759411625177,31.96,225.55,225.54,0.87]
[1759411625571,31.96,225.55,225.54,5.30380331]
[1759411627087,36.46146668,225.55,225.54,0.2]
[1759411627378,36.91146668,225.55,225.54,0.2]
[1759411627570,40.89507341,225.55,225.54,0.2]
[1759411627969,4.50146668,225.55,225.54,0.2]
[1759411628165,36.91146668,225.55,225.54,0.2]
[1759411628366,34.14054583,225.55,225.54,0.2]
[1759411628668,45.01702104,225.55,225.54,0.2]
[1759411629881,49.45062777,225.55,225.54,0.2]
[1759411630356,52.22771369,225.55,225.54,0.2]
[1759411630960,47.72008194,225.55,225.54,0.2]
[1759411631186,52.22771369,225.55,225.54,0.2]
[1759411631859,51.77771369,225.55,225.54,0.2]
[1759411632170,10.87647521,225.6,225.54,0.87]